bitfinex/quotes_BTCUSD_20251025
["timestamp","ask_amount","ask_price","bid_price","bid_amount"]
[1761376426057,0.20753267,111520.0,111510.0,0.4241226]
[1761376426830,0.20753267,111520.0,111510.0,0.35375238]
[1761376427309,0.02819265,111520.0,111510.0,0.35375238]
[1761376428826,0.00126133,111520.0,111510.0,0.38599147]
[1761376428971,0.00126133,111520.0,111510.0,0.41292385]
[1761376429622,0.00126133,111520.0,111510.0,0.71890151]
[1761376429820,0.00126133,111520.0,111510.0,0.71590151]
[1761376430173,0.00126133,111520.0,111510.0,0.46492385]
[1761376430583,0.00126133,111520.0,111510.0,0.46592385]
[1761376432401,0.00126133,111520.0,111510.0,0.43899147]
[1761376434163,0.00126133,111520.0,111510.0,0.58869147]
[1761376435297,0.00126133,111520.0,111510.0,0.55645238]
[1761376437288,0.30712187,111520.0,111510.0,0.58869147]
[1761376438137,0.00126133,111520.0,111510.0,0.58869147]
[1761376438358,0.00126133,111520.0,111510.0,0.55645238]
[1761376440853,0.30712187,111520.0,111510.0,0.55645238]
[1761376444982,0.00126133,111520.0,111510.0,0.55645238]
[1761376445229,0.30712187,111520.0,111510.0,0.55645238]
[1761376445423,0.30712187,111520.0,111510.0,0.58869147]
[1761376450286,0.48646189,111520.0,111510.0,0.58869147]
[1761376452526,0.48646189,111520.0,111510.0,0.56451421]
[1761376457387,0.48646189,111520.0,111510.0,0.61286939]
[1761376461313,0.00126133,111520.0,111510.0,0.61286939]
[1761376472624,0.30712187,111520.0,111510.0,0.61286939]
[1761376473081,0.00126133,111520.0,111510.0,0.61286939]
[1761376491208,0.00126133,111520.0,111510.0,0.5806303]
[1761376493153,0.00126133,111520.0,111510.0,0.60756104]
[1761376493572,0.00126133,111520.0,111510.0,0.91342158]
[1761376494291,0.00126133,111520.0,111510.0,0.60756104]
[1761376498212,0.00126133,111520.0,111510.0,0.91342158]
[1761376498799,0.00126133,111520.0,111510.0,0.60756104]
[1761376528552,0.00126133,111520.0,111510.0,0.91340759]
[1761376530150,0.00126133,111520.0,111510.0,1.25543642]
[1761376530404,0.00126133,111520.0,111510.0,1.20708124]
[1761376530675,0.00126133,111520.0,111510.0,0.90123469]
[1761376531167,0.00126133,111520.0,111510.0,0.90023469]
[1761376531562,0.00226133,111520.0,111510.0,0.89523469]
[1761376531840,0.00126133,111520.0,111510.0,0.89723469]
[1761376533276,0.00126133,111520.0,111510.0,0.96171216]
[1761376533436,0.00126133,111520.0,111510.0,0.89723469]
[1761376534016,0.00126133,111520.0,111510.0,0.96171216]
[1761376534391,0.00126133,111520.0,111510.0,0.89723469]
[1761376541294,0.00126133,111520.0,111510.0,1.20308124]
[1761376542521,0.00126133,111520.0,111510.0,1.25130219]
[1761376542889,0.00126133,111520.0,111510.0,0.94545543]
[1761376544276,0.00126133,111520.0,111510.0,1.25130198]
[1761376545563,0.00126133,111520.0,111510.0,0.94545543]
[1761376547524,0.00126133,111520.0,111510.0,0.89723469]
[1761376554313,0.00126133,111520.0,111510.0,0.53398814]
[1761376554516,0.00126133,111520.0,111510.0,1.10255209]
[1761376554953,0.00126133,111520.0,111510.0,1.04515209]
[1761376555164,0.00126133,111520.0,111510.0,1.10255209]
[1761376557536,0.00126133,111520.0,111510.0,1.05431469]
[1761376558058,0.00126133,111520.0,111510.0,0.74846814]
[1761376558261,0.00126133,111520.0,111510.0,1.05431469]
[1761376558986,0.00126133,111520.0,111510.0,0.74846814]
[1761376559202,0.00126133,111520.0,111510.0,1.05431469]
[1761376560757,0.00126133,111520.0,111510.0,1.05426856]
[1761376568967,0.00126133,111520.0,111510.0,1.11874603]
[1761376569535,0.00126133,111520.0,111510.0,0.81294561]
[1761376569763,0.00126133,111520.0,111510.0,1.11874603]
[1761376588612,0.00126133,111520.0,111510.0,0.81294561]
[1761376588826,0.00126133,111520.0,111510.0,1.11874603]
[1761376598184,0.10126133,111520.0,111510.0,1.11874603]
[1761376605310,0.10126133,111520.0,111510.0,1.42454645]
[1761376605882,0.10126133,111520.0,111510.0,1.11874603]
[1761376608311,0.10126133,111520.0,111510.0,1.42454645]
[1761376608545,0.10126133,111520.0,111510.0,1.70006898]
[1761376608894,0.10126133,111520.0,111510.0,1.78055007]
[1761376609759,0.10126133,111520.0,111510.0,1.77855007]
[1761376609962,0.10326133,111520.0,111510.0,1.77855007]
[1761376611914,0.10226133,111520.0,111510.0,1.77855007]
[1761376612125,0.10326133,111520.0,111510.0,1.77855007]
[1761376612358,0.10226133,111520.0,111510.0,1.84429624]
[1761376612795,0.10126133,111520.0,111510.0,1.84429624]
[1761376613004,0.10226133,111520.0,111510.0,2.15009666]
[1761376613225,0.10226133,111520.0,111510.0,1.84429624]
[1761376613439,0.10226133,111520.0,111510.0,2.15009666]
[1761376613668,0.10226133,111520.0,111510.0,1.84429624]
[1761376614109,0.10226133,111520.0,111510.0,2.15009666]
[1761376614304,0.10226133,111520.0,111510.0,1.84429624]
[1761376614741,0.10226133,111520.0,111510.0,2.15009666]
[1761376615327,0.10226133,111520.0,111510.0,2.09079624]
[1761376615651,0.10226133,111520.0,111510.0,2.39659666]
[1761376616807,0.10226133,111520.0,111510.0,2.40659665]
[1761376621358,0.00397414,111540.0,111530.0,0.22656261]
[1761376621570,0.00402316,111540.0,111530.0,1.1589605]
[1761376622334,0.00402316,111540.0,111530.0,1.18588085]
[1761376622532,0.00402316,111540.0,111530.0,1.18638085]
[1761376622749,0.00402316,111540.0,111530.0,1.54181929]
[1761376623533,0.00402316,111540.0,111530.0,1.59181929]
[1761376627037,0.00469783,111540.0,111530.0,1.28632691]
[1761376628435,0.00469783,111540.0,111530.0,1.59181929]
[1761376629975,0.00469783,111540.0,111530.0,1.28632691]
[1761376632872,0.00469783,111540.0,111530.0,1.59181929]
[1761376637914,0.00469783,111540.0,111530.0,1.52760122]
[1761376639473,0.00469783,111540.0,111530.0,1.58496122]
[1761376642335,0.00469783,111540.0,111530.0,1.66544231]
[1761376643533,0.19989783,111550.0,111540.0,0.55549015]
[1761376643734,0.20038809,111550.0,111540.0,1.37816706]
[1761376644085,0.20072536,111550.0,111540.0,1.37816706]
[1761376644284,0.20072536,111550.0,111540.0,1.40508555]
[1761376645248,0.20072536,111550.0,111540.0,1.45232422]
[1761376648501,0.20072536,111550.0,111540.0,1.14683184]
[1761376649157,0.20072536,111550.0,111540.0,1.20419184]
[1761376655161,0.20072536,111550.0,111540.0,1.50968422]
[1761376656175,0.20072536,111550.0,111540.0,1.69330346]
[1761376656176,0.11684822,111550.0,111540.0,1.69330346]
[1761376656385,0.11684822,111550.0,111540.0,1.68888222]
[1761376656588,0.11684822,111550.0,111540.0,1.62533217]
[1761376658066,0.05730487,111570.0,111560.0,2.83644275]
[1761376658067,0.05530488,111570.0,111560.0,2.83644275]
[1761376658273,0.05530488,111570.0,111560.0,3.48763864]
[1761376658274,1e-08,111570.0,111560.0,3.48763864]
[1761376658511,0.0352,111620.0,111560.0,3.48763864]
[1761376658512,0.0011269,111640.0,111630.0,0.1791633]
[1761376658655,0.0011269,111640.0,111630.0,1.5359148]
[1761376658656,0.0011759,111640.0,111630.0,1.5359148]
[1761376658837,0.0011759,111640.0,111630.0,1.24646447]
[1761376659043,0.0011759,111640.0,111630.0,1.51468257]
[1761376659244,0.0011759,111640.0,111630.0,1.50526815]
[1761376659472,0.06989895,111670.0,111660.0,0.21529745]
[1761376659722,0.07038885,111670.0,111660.0,0.50384525]
[1761376659896,0.07038885,111670.0,111660.0,0.53580458]
[1761376660154,0.07038885,111670.0,111660.0,0.80933763]
[1761376660370,0.07038885,111670.0,111660.0,1.09970122]
[1761376660584,0.07038885,111670.0,111660.0,0.32183576]
[1761376660789,0.06038885,111670.0,111660.0,0.28565348]
[1761376661420,0.54498036,111670.0,111660.0,0.10653831]
[1761376663191,0.54498036,111670.0,111660.0,0.10853831]
[1761376664341,0.36588123,111670.0,111660.0,0.10653831]
[1761376664553,0.54498036,111670.0,111660.0,0.10653831]
[1761376665208,0.54498036,111670.0,111660.0,0.08981901]
[1761376666624,1.19047274,111670.0,111660.0,0.08981901]
[1761376667862,1.18547274,111670.0,111660.0,0.08981901]
[1761376668479,1.18547274,111670.0,111630.0,0.20483577]
[1761376668480,0.17914469,111650.0,111630.0,0.19587761]
[1761376668683,0.48463707,111650.0,111640.0,0.08981901]
[1761376668884,0.48463707,111650.0,111640.0,0.10653831]
[1761376669577,0.20604577,111650.0,111640.0,0.10653831]
[1761376669766,0.51153815,111650.0,111640.0,0.10653831]
[1761376670307,0.20604577,111650.0,111640.0,0.10653831]
[1761376671998,0.51153815,111650.0,111640.0,0.10653831]
[1761376672436,0.20604577,111650.0,111640.0,0.10653831]
[1761376672650,0.51153815,111650.0,111640.0,0.10653831]
[1761376673558,0.48463707,111650.0,111640.0,0.10653831]
[1761376675129,0.48800662,111650.0,111640.0,0.10653831]
[1761376679340,0.18251424,111650.0,111640.0,0.10653831]
[1761376679659,0.48800662,111650.0,111640.0,0.10653831]
[1761376682712,0.48771559,111650.0,111640.0,0.10653831]
[1761376684037,0.00336955,111650.0,111640.0,0.91400298]
[1761376684275,0.00336955,111650.0,111640.0,1.34729576]
[1761376684757,0.00336955,111650.0,111640.0,1.37127185]
[1761376685221,0.00336955,111650.0,111640.0,1.33931252]
[1761376685910,0.00336955,111650.0,111640.0,0.72890982]
[1761376686127,0.00336955,111650.0,111640.0,1.33931252]
[1761376686354,0.00336955,111650.0,111640.0,1.29136694]
[1761376686580,0.00336955,111650.0,111640.0,1.41285514]
[1761376687060,0.05538885,111670.0,111660.0,0.51911517]
[1761376687292,0.05538885,111670.0,111660.0,1.47756723]
[1761376687760,0.05538885,111670.0,111660.0,1.51374951]
[1761376688455,0.05538885,111670.0,111660.0,1.7650162]
[1761376688678,0.05538885,111670.0,111660.0,1.84549729]
[1761376688913,0.05538885,111670.0,111660.0,1.53029595]
[1761376689153,0.05538885,111670.0,111660.0,1.53033595]
[1761376689373,0.05538885,111670.0,111660.0,1.51374734]
[1761376690701,0.05538885,111670.0,111660.0,1.20854599]
[1761376690913,0.05538885,111670.0,111660.0,0.90334464]
[1761376691132,0.05538885,111670.0,111660.0,1.24990342]
[1761376692465,0.05538885,111670.0,111660.0,1.18601094]
[1761376692704,0.05606234,111670.0,111660.0,1.18601094]
[1761376692917,0.05606234,111670.0,111660.0,0.54733202]
[1761376693333,0.05606234,111670.0,111660.0,0.57925385]
[1761376699563,0.05606234,111670.0,111660.0,0.54307157]
[1761376699804,0.23516147,111670.0,111660.0,0.54307157]
[1761376700466,0.05606234,111670.0,111660.0,0.38455157]
[1761376700876,0.23516147,111670.0,111660.0,0.38455157]
[1761376701087,0.23516147,111670.0,111660.0,0.33667171]
[1761376701297,0.05606234,111670.0,111660.0,0.33667171]
[1761376702364,0.05606234,111670.0,111660.0,0.38455157]
[1761376703025,0.05606234,111670.0,111660.0,0.33667171]
[1761376703241,0.05606234,111670.0,111660.0,0.38455157]
[1761376707036,0.05606234,111670.0,111660.0,0.76729263]
[1761376707314,0.05606234,111670.0,111660.0,0.7353708]
[1761376708361,0.05606234,111670.0,111660.0,0.38881202]
[1761376708574,0.05606234,111670.0,111660.0,0.7353708]
[1761376710251,0.05606234,111670.0,111660.0,0.38881202]
[1761376710470,0.05606234,111670.0,111660.0,0.7353708]
[1761376710683,0.05606234,111670.0,111660.0,0.99866696]
[1761376711114,0.05606234,111670.0,111660.0,0.98194766]
[1761376711342,0.05606234,111670.0,111660.0,0.9340678]
[1761376711560,0.05606234,111670.0,111660.0,0.32421286]
[1761376711794,0.05606234,111670.0,111660.0,0.9340678]
[1761376712234,0.05606234,111670.0,111660.0,0.99796028]
[1761376712443,0.05606234,111670.0,111660.0,0.38810534]
[1761376712663,0.05606234,111670.0,111660.0,0.99796028]
[1761376713096,0.05606234,111670.0,111660.0,0.9340678]
[1761376713367,0.05606234,111670.0,111660.0,0.99796028]
[1761376715720,0.05606234,111670.0,111660.0,1.05528028]
[1761376721161,0.05106234,111670.0,111660.0,1.05528028]
[1761376722345,0.05106234,111670.0,111660.0,0.44542534]
[1761376722549,0.05106234,111670.0,111660.0,1.05528028]
[1761376724988,0.23016147,111670.0,111660.0,0.87616511]
[1761376725205,0.23016147,111670.0,111660.0,0.16623541]
[1761376725414,0.23016147,111670.0,111660.0,0.21429163]
[1761376725622,0.23016147,111670.0,111660.0,0.25047391]
[1761376725873,0.05106234,111670.0,111660.0,1.05528028]
[1761376726083,0.23016147,111670.0,111660.0,1.05528028]
[1761376727360,0.23016147,111670.0,111660.0,0.75035281]
[1761376728549,0.23016147,111670.0,111660.0,0.38153286]
[1761376728965,0.23016147,111670.0,111660.0,0.68646033]
[1761376729966,0.23016147,111670.0,111660.0,0.38153286]
[1761376730166,0.23016147,111670.0,111660.0,0.68646033]
[1761376733501,0.23016147,111670.0,111660.0,0.20241769]
[1761376733700,0.23016147,111670.0,111660.0,0.25047289]
[1761376734565,0.23016147,111670.0,111660.0,0.42958806]
[1761376735684,0.23016147,111670.0,111660.0,0.55540036]
[1761376735845,0.23016147,111670.0,111660.0,0.73451553]
[1761376737284,0.23016147,111670.0,111660.0,0.42958806]
[1761376737482,0.23016147,111670.0,111660.0,0.25047289]
[1761376737725,0.23016147,111670.0,111660.0,0.58743909]
[1761376740844,0.23016147,111670.0,111660.0,0.28251162]
[1761376741618,0.23016147,111670.0,111660.0,0.24632934]
[1761376747913,0.23016147,111670.0,111660.0,0.39602934]
[1761376748112,0.23016147,111670.0,111660.0,0.34797414]
[1761376749847,0.53517594,111670.0,111660.0,0.34797414]
[1761376750253,0.53517594,111670.0,111660.0,0.37200179]
[1761376750458,0.23016147,111670.0,111660.0,0.37200154]
[1761376750873,0.53517594,111670.0,111660.0,0.16498154]
[1761376751473,0.53517594,111670.0,111660.0,0.13294281]
[1761376752363,0.53517594,111670.0,111660.0,0.16498154]
[1761376752570,0.53517594,111670.0,111660.0,0.13594281]
[1761376753172,0.53517594,111670.0,111660.0,0.13694281]
[1761376754357,0.53517594,111670.0,111660.0,0.16898154]
[1761376755132,0.23016147,111670.0,111660.0,0.31868154]
[1761376755354,0.23016147,111670.0,111660.0,0.28664281]
[1761376761056,0.53517594,111670.0,111660.0,0.28664281]
[1761376765924,0.53517594,111670.0,111660.0,0.26261541]
[1761376766794,0.53517594,111670.0,111660.0,0.11291541]
[1761376767179,0.23016147,111670.0,111660.0,0.11291541]
[1761376767363,0.23016147,111670.0,111660.0,0.45986879]
[1761376767562,0.23016147,111670.0,111660.0,0.44195728]
[1761376768357,0.23016147,111670.0,111660.0,0.62107245]
[1761376768601,0.23016147,111670.0,111660.0,0.44195728]
[1761376768974,0.23016147,111670.0,111660.0,0.13694281]
[1761376769175,0.23016147,111670.0,111660.0,0.15485432]
[1761376770233,0.23016147,111670.0,111660.0,0.13694281]
[1761376772646,0.23016147,111670.0,111660.0,0.28664281]
[1761376773254,0.23016147,111670.0,111660.0,0.13694281]
[1761376773659,0.53517594,111670.0,111660.0,0.13694281]
[1761376774203,0.23016147,111670.0,111660.0,0.13694281]
[1761376777982,0.53517594,111670.0,111660.0,0.13694281]
[1761376783101,0.53517594,111670.0,111660.0,0.13709099]
[1761376784042,0.53517594,111670.0,111660.0,0.113051]
[1761376784251,1.18019041,111670.0,111660.0,0.113051]
[1761376784480,1.18019041,111670.0,111660.0,0.09381901]
[1761376784906,1.18019041,111670.0,111660.0,0.004]
[1761376785328,1.18019041,111670.0,111660.0,0.003]
[1761376785536,0.17913121,111650.0,111640.0,0.18183999]
[1761376785742,0.48414568,111650.0,111640.0,0.2908872]
[1761376786590,0.48414568,111650.0,111640.0,0.10904721]
[1761376787033,0.48414568,111650.0,111640.0,0.11304721]
[1761376787243,0.48414568,111650.0,111640.0,0.11404721]
[1761376790118,0.48414568,111650.0,111640.0,0.11304721]
[1761376791370,0.48414568,111650.0,111640.0,0.10904721]
[1761376791588,0.48414568,111650.0,111640.0,0.11004721]
[1761376792855,0.48414568,111650.0,111640.0,0.09081901]
[1761376794180,0.82414568,111650.0,111640.0,0.09081901]
[1761376794398,0.85104973,111650.0,111640.0,0.09081901]
[1761376795277,0.85104973,111650.0,111640.0,0.001]
[1761376801378,0.85104973,111650.0,111640.0,0.08981901]
[1761376801805,0.85204973,111650.0,111640.0,0.08981901]
[1761376802801,0.85226302,111650.0,111640.0,0.08981901]
[1761376806351,0.82535897,111650.0,111640.0,0.08981901]
[1761376806758,0.82535897,111650.0,111640.0,0.11672236]
[1761376810312,1.13058673,111650.0,111640.0,0.11672236]
[1761376810507,1.13058673,111650.0,111640.0,0.08981901]
[1761376816134,0.52013121,111650.0,111640.0,0.08981901]
[1761376816329,1.13058673,111650.0,111640.0,0.08981901]
[1761376818078,1.13058673,111650.0,111640.0,0.10906733]
[1761376818768,0.52013121,111650.0,111640.0,0.10906733]
[1761376819195,0.82535897,111650.0,111640.0,0.10906733]
[1761376819408,0.82535897,111650.0,111640.0,0.13597027]
[1761376825182,0.001,111650.0,111640.0,0.83538528]
[1761376825397,0.001,111650.0,111640.0,0.891464]
[1761376825609,0.001,111650.0,111640.0,0.58623624]
[1761376825802,0.001,111650.0,111640.0,0.891464]
[1761376826030,0.001,111650.0,111640.0,1.01712401]
[1761376826283,0.001,111650.0,111640.0,1.04116671]
[1761376826487,0.4846935,111660.0,111640.0,0.73593895]
[1761376826696,0.4846935,111660.0,111650.0,0.29299292]
[1761376826844,0.4846935,111660.0,111650.0,0.31224124]
[1761376827296,0.4846935,111660.0,111650.0,0.31509668]
[1761376827789,0.4856935,111660.0,111650.0,0.31509668]
[1761376831512,0.18046574,111660.0,111650.0,0.31509668]
[1761376831665,0.4856935,111660.0,111650.0,0.31509668]
[1761376832676,0.4856935,111660.0,111650.0,0.13596547]
[1761376832880,0.18046574,111660.0,111650.0,0.13596547]
[1761376833087,0.4856935,111660.0,111650.0,0.13596547]
[1761376836603,0.4856935,111660.0,111650.0,0.31509668]
[1761376836811,0.18046574,111660.0,111650.0,0.31509668]
[1761376837018,0.4856935,111660.0,111650.0,0.31509668]
[1761376837992,0.00133677,111660.0,111650.0,0.31509668]
[1761376838167,0.30656453,111660.0,111650.0,0.31509668]
[1761376838370,0.00133677,111660.0,111650.0,0.31509668]
[1761376839441,0.00133677,111660.0,111650.0,0.64436714]
[1761376839649,0.00033677,111660.0,111650.0,0.64436714]
[1761376839898,0.00033677,111660.0,111650.0,0.64536714]
[1761376840739,0.00033677,111660.0,111650.0,0.64636714]
[1761376841603,0.00033677,111660.0,111650.0,0.64536714]
[1761376842268,0.00033677,111660.0,111650.0,0.64936714]
[1761376842451,0.00033677,111660.0,111650.0,0.68140587]
[1761376843284,0.00033677,111660.0,111650.0,0.86728815]
[1761376846336,0.00033677,111660.0,111650.0,0.56206039]
[1761376846542,0.00033677,111660.0,111650.0,0.86728815]
[1761376846951,0.00033677,111660.0,111650.0,0.71758815]
[1761376847163,0.00033677,111660.0,111650.0,0.69354545]
[1761376847922,0.00033677,111660.0,111650.0,0.90854545]
[1761376848757,0.00033677,111660.0,111650.0,0.85122545]
[1761376848963,0.00033677,111660.0,111650.0,0.90854545]
[1761376849856,0.00033677,111660.0,111650.0,0.35213541]
[1761376850065,0.00033677,111660.0,111650.0,0.59111076]
[1761376850757,0.78990746,111660.0,111650.0,0.16494082]
[1761376850957,0.78990746,111660.0,111650.0,0.35596547]
[1761376851375,0.4846797,111660.0,111650.0,0.35596547]
[1761376852182,0.17945194,111660.0,111650.0,0.35596547]
[1761376852415,0.4846797,111660.0,111650.0,0.35596547]
[1761376852814,0.17945194,111660.0,111650.0,0.35596547]
[1761376853026,0.4846797,111660.0,111650.0,0.35596547]
[1761376853236,0.4846797,111660.0,111650.0,0.37994082]
[1761376854076,0.4846797,111660.0,111650.0,0.35304268]
[1761376860165,0.4846797,111660.0,111650.0,0.53217389]
[1761376860570,0.4846797,111660.0,111650.0,0.35304268]
[1761376863376,0.4846797,111660.0,111650.0,0.29572268]
[1761376863598,0.17945194,111660.0,111650.0,0.29572268]
[1761376863740,0.4846797,111660.0,111650.0,0.29572268]
[1761376864657,0.17945194,111660.0,111650.0,0.29572268]
[1761376864865,0.48458109,111660.0,111650.0,0.29572268]
[1761376865319,0.48458109,111660.0,111650.0,0.47485389]
[1761376865686,0.17945194,111660.0,111650.0,0.47485389]
[1761376866419,0.48458109,111660.0,111650.0,0.53225389]
[1761376866872,0.00033677,111660.0,111650.0,0.53225389]
[1761376867089,0.00033677,111660.0,111650.0,0.56429262]
[1761376867300,0.00033677,111660.0,111650.0,0.86942177]
[1761376867519,0.00033677,111660.0,111650.0,0.56429262]
[1761376867725,0.00033677,111660.0,111650.0,0.71399262]
[1761376868748,0.00033677,111660.0,111650.0,1.01912177]
[1761376868970,0.00033677,111660.0,111650.0,0.99514642]
[1761376869325,0.00033677,111660.0,111650.0,1.04320162]
[1761376869530,0.00033677,111660.0,111650.0,1.10627663]
[1761376869750,0.00033677,111660.0,111650.0,1.0742379]
[1761376869957,0.00033677,111660.0,111650.0,1.4142379]
[1761376870158,0.00033677,111660.0,111650.0,1.43007518]
[1761376870562,0.00033677,111660.0,111650.0,1.42907518]
[1761376870972,0.00133677,111660.0,111650.0,1.42507518]
[1761376871425,0.00333677,111660.0,111650.0,1.42507518]
[1761376873373,0.00333677,111660.0,111650.0,1.73020433]
[1761376873597,0.05038885,111670.0,111660.0,0.51911517]
[1761376873799,0.05038885,111670.0,111660.0,1.48155311]
[1761376874593,0.05038885,111670.0,111660.0,1.50843968]
[1761376874791,0.05038885,111670.0,111660.0,1.71843968]
[1761376875394,0.05038885,111670.0,111660.0,1.10818138]
[1761376875596,0.05038885,111670.0,111660.0,1.71843968]
[1761376875986,0.05038885,111670.0,111660.0,1.90432196]
[1761376876673,0.02508,111680.0,111670.0,0.17909913]
[1761376876919,0.02522688,111680.0,111670.0,0.76896552]
[1761376877091,0.02522688,111680.0,111670.0,0.75105561]
[1761376877326,0.02522688,111680.0,111670.0,0.79891379]
[1761376877536,0.02522688,111680.0,111670.0,0.84189247]
[1761376877769,0.02522688,111680.0,111670.0,0.77794016]
[1761376878380,0.02522688,111680.0,111670.0,0.82577661]
[1761376879547,0.02522688,111680.0,111670.0,0.97547661]
[1761376879744,0.02590028,111680.0,111670.0,0.97547661]
[1761376888157,0.02590028,111680.0,111670.0,0.67034746]
[1761376888619,0.02590028,111680.0,111670.0,1.22197661]
[1761376890608,0.02590028,111680.0,111670.0,1.13094671]
[1761376890789,0.02590028,111680.0,111670.0,1.32196926]
[1761376890997,0.02590028,111680.0,111670.0,0.98196926]
[1761376891423,0.02590028,111680.0,111670.0,1.01815154]
[1761376891865,0.02590028,111680.0,111670.0,0.76700926]
[1761376892081,0.02590028,111680.0,111670.0,0.49659001]
[1761376892286,0.02590028,111680.0,111670.0,0.58576926]
[1761376892916,0.02590028,111680.0,111670.0,0.13296633]
[1761376892917,0.51011252,111680.0,111670.0,0.13296633]
[1761376893122,0.51011252,111680.0,111670.0,0.25057901]
[1761376893327,0.51011252,111680.0,111670.0,0.25157901]
[1761376895688,0.51011252,111680.0,111670.0,0.25057901]
[1761376895846,0.51011252,111680.0,111670.0,0.24757901]
[1761376896052,0.51011252,111680.0,111670.0,0.25057901]
[1761376896365,0.59993153,111680.0,111670.0,0.25057901]
[1761376900245,0.51011252,111680.0,111670.0,0.25057901]
[1761376911235,0.20498337,111680.0,111670.0,0.25057901]
[1761376912663,0.02590028,111680.0,111670.0,0.7539685]
[1761376912873,0.02590028,111680.0,111670.0,0.75870629]
[1761376913115,0.02590028,111680.0,111670.0,0.78559652]
[1761376913327,0.02590028,111680.0,111670.0,0.8217788]
[1761376913539,0.02590028,111680.0,111670.0,0.82973905]
[1761376913688,0.02590028,111680.0,111670.0,0.8785755]
[1761376914080,0.02590028,111680.0,111670.0,1.0875755]
[1761376914313,0.02590028,111680.0,111670.0,1.05768527]
[1761376914531,0.02590028,111680.0,111670.0,1.06168527]
[1761376914770,0.02590028,111680.0,111670.0,1.05768527]
[1761376915212,0.02590028,111680.0,111670.0,1.05868527]
[1761376916327,0.02590028,111680.0,111670.0,1.02682602]
[1761376924708,0.02590028,111680.0,111670.0,0.72169687]
[1761376925117,0.02590028,111680.0,111670.0,1.02657853]
[1761376925716,0.02590028,111680.0,111670.0,0.72169687]
[1761376925921,0.02590028,111680.0,111670.0,1.02657853]
[1761376926206,0.33078194,111680.0,111670.0,0.75354385]
[1761376926424,0.33078194,111680.0,111670.0,0.7630274]
[1761376926636,0.02590028,111680.0,111670.0,0.7630274]
[1761376927065,0.02590028,111680.0,111670.0,0.9127274]
[1761376927485,0.02590028,111680.0,111670.0,0.7027274]
[1761376927894,0.02590028,111680.0,111670.0,1.00760906]
[1761376928971,0.02590028,111680.0,111670.0,0.7027274]
[1761376929827,0.02590028,111680.0,111670.0,1.00760906]
[1761376933151,0.02590028,111680.0,111670.0,0.85790906]
[1761376933409,0.02590028,111680.0,111670.0,0.90574551]
[1761376937729,0.02590028,111680.0,111670.0,0.60086385]
[1761376937963,0.02590028,111680.0,111670.0,0.90574551]
[1761376938175,0.02590028,111680.0,111670.0,0.56464157]
[1761376939014,0.02590028,111680.0,111670.0,0.71434157]
[1761376939252,0.02590028,111680.0,111670.0,0.68241459]
[1761376940865,0.33078194,111680.0,111670.0,0.68241459]
[1761376941114,0.50986503,111680.0,111670.0,0.68241459]
[1761376941319,0.50986503,111680.0,111670.0,0.52477459]
[1761376941528,0.50986503,111680.0,111670.0,0.71437387]
[1761376941942,0.20498337,111680.0,111670.0,0.71437387]
[1761376942152,0.50986503,111680.0,111670.0,0.71437387]
[1761376942715,0.20498337,111680.0,111670.0,0.71437387]
[1761376942920,0.50986503,111680.0,111670.0,0.70158741]
[1761376947540,0.50986503,111680.0,111670.0,0.52248828]
[1761376947755,0.50986503,111680.0,111670.0,0.70158741]
[1761376947900,0.50986503,111680.0,111670.0,0.73360561]
[1761376948255,0.50986503,111680.0,111670.0,0.50667003]
[1761376948445,0.50986503,111680.0,111670.0,0.55450648]
[1761376950251,0.20498337,111680.0,111670.0,0.55450648]
[1761376950451,0.50986503,111680.0,111670.0,0.50667003]
[1761376951696,0.50986503,111680.0,111670.0,0.53067991]
[1761376953150,0.50986503,111680.0,111670.0,0.49866171]
[1761376953989,0.81474669,111680.0,111670.0,0.49866171]
[1761376954400,0.50986503,111680.0,111670.0,0.49866171]
[1761376956861,0.50986503,111680.0,111670.0,0.34896171]
[1761376962777,0.50986503,111680.0,111670.0,0.55896171]
[1761376963389,0.50986503,111680.0,111670.0,0.55895395]
[1761376963909,0.81474669,111680.0,111670.0,0.55895395]
[1761376964135,0.50986503,111680.0,111670.0,0.55895395]
[1761376964346,0.81474669,111680.0,111670.0,0.55895395]
[1761376966270,0.50986503,111680.0,111670.0,0.55895395]
[1761376967499,0.81474669,111680.0,111670.0,0.55895395]
[1761376968433,0.50986503,111680.0,111670.0,0.55895395]
[1761376968697,0.50977548,111680.0,111670.0,0.55895395]
[1761376973067,0.50977548,111680.0,111670.0,0.50163395]
[1761376973506,0.20489382,111680.0,111670.0,0.50163395]
[1761376973719,0.20489382,111680.0,111670.0,0.53365215]
[1761376975788,0.20489382,111680.0,111670.0,0.71275128]
[1761376976205,0.20489382,111680.0,111670.0,1.01763294]
[1761376976630,0.20489382,111680.0,111670.0,0.71275128]
[1761376977235,0.02581073,111680.0,111670.0,0.71275128]
[1761376977400,0.20489382,111680.0,111670.0,0.68874298]
[1761376978910,0.20489382,111680.0,111670.0,0.71278198]
[1761376980969,0.20489382,111680.0,111670.0,0.99362464]
[1761376982089,0.20489382,111680.0,111670.0,0.71278556]
[1761376982295,0.20489382,111680.0,111670.0,0.68874298]
[1761376986004,0.50977548,111680.0,111670.0,0.68874298]
[1761376986494,0.50977548,111680.0,111670.0,0.83844298]
[1761376986878,0.20489382,111680.0,111670.0,0.83844298]
[1761376988257,0.20489382,111680.0,111670.0,0.8624845]
[1761376992047,0.02581073,111680.0,111670.0,0.8624845]
[1761376994589,0.20489382,111680.0,111670.0,0.8624845]
[1761376995159,0.20489382,111680.0,111670.0,0.83844298]
[1761376995362,0.02581073,111680.0,111670.0,0.83844298]
[1761376996191,0.02581073,111680.0,111670.0,0.88627943]
[1761376996623,0.02581073,111680.0,111670.0,0.91317072]
[1761376996970,0.02581073,111680.0,111670.0,0.97049072]
[1761376998955,0.02581073,111680.0,111670.0,1.24345166]
[1761376999170,0.02581073,111680.0,111670.0,1.27963394]
[1761377002018,0.02581073,111680.0,111670.0,1.23179749]
[1761377003406,0.02581073,111680.0,111670.0,0.92681835]
[1761377003626,0.02581073,111680.0,111670.0,1.23179749]
[1761377004277,0.02581073,111680.0,111670.0,1.2957498]
[1761377004494,0.02581073,111680.0,111670.0,1.23179749]
[1761377005397,0.02581073,111680.0,111670.0,0.92681835]
[1761377005596,0.02581073,111680.0,111670.0,1.23179497]
[1761377006968,0.02581073,111680.0,111670.0,0.92681583]
[1761377007169,0.02581073,111680.0,111670.0,1.23179497]
[1761377011611,0.02581073,111680.0,111670.0,1.23079497]
[1761377016063,0.02581073,111680.0,111670.0,1.63474728]
[1761377016754,0.199895,111690.0,111680.0,0.82406223]
[1761377016962,0.19998264,111690.0,111680.0,0.91388124]
[1761377017340,0.19998264,111690.0,111680.0,1.25504266]
[1761377017553,0.19998264,111690.0,111680.0,1.04089859]
[1761377018559,0.19998264,111690.0,111680.0,1.34587773]
[1761377018777,0.19998264,111690.0,111680.0,3.34587773]
[1761377019421,24.997817,111700.0,111690.0,3.16520762]
[1761377019422,24.72885485,111700.0,111690.0,3.16520762]
[1761377019642,24.72885485,111700.0,111690.0,3.31888647]
[1761377020082,24.72885485,111700.0,111690.0,3.39535917]
[1761377020305,24.72885485,111700.0,111690.0,3.44896554]
[1761377020753,24.72885485,111700.0,111690.0,3.44996554]